bitfinex/quotes_BTCUSD_20241111
["timestamp","ask_amount","ask_price","bid_price","bid_amount"]
[1731303714598,0.10340981,80784.0,80783.0,0.18415641]
[1731303714746,0.00438081,80783.0,80774.0,0.0014]
[1731303715377,0.00438081,80783.0,80779.0,0.099034]
[1731303715590,0.12594221,80782.0,80774.0,0.0014]
[1731303715753,0.00438081,80781.0,80774.0,0.0014]
[1731303715937,0.00438081,80779.0,80774.0,0.0014]
[1731303716140,0.22497821,80778.0,80774.0,0.0014]
[1731303716334,0.12594221,80778.0,80774.0,0.0014]
[1731303716532,0.22497821,80778.0,80774.0,0.0014]
[1731303717049,0.00438081,80778.0,80774.0,0.0014]
[1731303717930,0.12594221,80777.0,80774.0,0.0014]
[1731303718359,0.22498021,80777.0,80774.0,0.0014]
[1731303718711,0.12594221,80777.0,80774.0,0.0014]
[1731303718874,0.18853722,80775.0,80774.0,0.0014]
[1731303719078,0.40200007,80775.0,80774.0,0.0014]
[1731303719389,0.42463763,80775.0,80774.0,0.0014]
[1731303719624,0.39800058,80775.0,80774.0,0.0014]
[1731303719819,0.40163763,80775.0,80774.0,0.0014]
[1731303720380,0.37900007,80775.0,80774.0,0.0014]
[1731303720900,0.40162653,80775.0,80774.0,0.0014]
[1731303722411,0.37900007,80775.0,80774.0,0.0014]
[1731303723331,0.40200007,80775.0,80774.0,0.0014]
[1731303724232,0.37900007,80775.0,80774.0,0.0014]
[1731303724450,0.37461926,80775.0,80774.0,0.0014]
[1731303724688,0.27900007,80775.0,80774.0,0.0014]
[1731303725106,0.6847,80779.0,80774.0,0.0014]
[1731303725107,0.00438081,80778.0,80774.0,0.0014]
[1731303725625,0.6847,80779.0,80774.0,0.0014]
[1731303725626,0.00438081,80775.0,80774.0,0.0014]
[1731303725839,0.10342081,80775.0,80774.0,0.0014]
[1731303726265,0.23300007,80775.0,80774.0,0.0014]
[1731303727216,0.38194228,80775.0,80774.0,0.0014]
[1731303727571,0.38194228,80775.0,80761.0,0.0014]
[1731303727572,0.20707386,80762.0,80761.0,0.0014]
[1731303727775,0.32937902,80762.0,80761.0,0.0014]
[1731303728020,0.13032302,80762.0,80761.0,0.0014]
[1731303728144,0.23301607,80762.0,80761.0,0.0014]
[1731303730540,0.48381607,80762.0,80761.0,0.0014]
[1731303730771,0.51140394,80762.0,80761.0,0.0014]
[1731303730922,0.48340394,80762.0,80761.0,0.0014]
[1731303731505,0.13032302,80762.0,80761.0,0.0014]
[1731303731944,0.00438081,80771.0,80761.0,0.0014]
[1731303732146,0.00438081,80767.0,80761.0,0.0014]
[1731303732347,0.12594221,80766.0,80761.0,0.0014]
[1731303732555,0.099056,80762.0,80761.0,0.0014]
[1731303732746,0.22937902,80762.0,80761.0,0.0014]
[1731303733023,0.13032302,80762.0,80761.0,0.0014]
[1731303735119,0.22937902,80762.0,80761.0,0.0014]
[1731303735523,0.23301607,80762.0,80761.0,0.0014]
[1731303735915,0.33301607,80762.0,80761.0,0.0014]
[1731303736119,0.41097479,80762.0,80761.0,0.0014]
[1731303736333,0.51430354,80762.0,80761.0,0.0014]
[1731303737182,0.55043479,80762.0,80761.0,0.0014]
[1731303737466,0.20344681,80754.0,80753.0,0.0014]
[1731303737610,0.38811869,80754.0,80753.0,0.0014]
[1731303738237,0.3556144,80754.0,80753.0,0.0014]
[1731303738896,0.15291135,80754.0,80753.0,0.0014]
[1731303739068,0.2556144,80754.0,80753.0,0.0014]
[1731303739747,0.25197735,80754.0,80753.0,0.0014]
[1731303739943,0.2556144,80754.0,80753.0,0.0014]
[1731303740548,0.29175574,80754.0,80753.0,0.0014]
[1731303741395,0.18905269,80754.0,80753.0,0.0014]
[1731303741591,0.05872967,80754.0,80753.0,0.0014]
[1731303741751,0.05872967,80754.0,80753.0,0.100467]
[1731303742355,0.02258833,80754.0,80753.0,0.100467]
[1731303742569,0.02258833,80754.0,80753.0,0.0014]
[1731303742779,0.02258833,80754.0,80753.0,0.100467]
[1731303743407,0.00438081,80759.0,80756.0,0.099062]
[1731303743648,0.00438081,80759.0,80753.0,0.0014]
[1731303743830,0.00438081,80759.0,80754.0,0.099066]
[1731303744024,0.00438081,80759.0,80753.0,0.100466]
[1731303744258,0.00438081,80758.0,80753.0,0.0014]
[1731303744476,0.02708897,80758.0,80753.0,0.0014]
[1731303744629,0.18415641,80754.0,80753.0,0.0014]
[1731303744838,0.47637178,80754.0,80753.0,0.0014]
[1731303744993,0.50437178,80754.0,80753.0,0.0014]
[1731303745218,0.50437178,80754.0,80749.0,0.0014]
[1731303745219,0.10845181,80750.0,80749.0,0.0014]
[1731303745423,0.38010593,80750.0,80749.0,0.0014]
[1731303745930,0.38374298,80750.0,80749.0,0.0014]
[1731303746145,0.36074298,80750.0,80749.0,0.0014]
[1731303746345,0.35574298,80750.0,80749.0,0.0014]
[1731303747988,0.38374298,80750.0,80749.0,0.0014]
[1731303748752,0.35574298,80750.0,80749.0,0.0014]
[1731303748955,0.3557392,80750.0,80749.0,0.0014]
[1731303750350,0.33303107,80750.0,80749.0,0.0014]
[1731303750605,0.36603107,80750.0,80749.0,0.0014]
[1731303750775,1.13980158,80750.0,80749.0,0.0014]
[1731303751474,1.15750039,80750.0,80749.0,0.0014]
[1731303751766,1.06842988,80750.0,80749.0,0.0014]
[1731303753224,1.04042988,80750.0,80749.0,0.0014]
[1731303753371,1.04542988,80750.0,80749.0,0.0014]
[1731303753563,1.04042988,80750.0,80749.0,0.0014]
[1731303754552,0.94135888,80750.0,80749.0,0.0014]
[1731303754718,0.84135888,80750.0,80749.0,0.0014]
[1731303754918,0.84135929,80750.0,80749.0,0.0014]
[1731303755505,0.94043029,80750.0,80749.0,0.0014]
[1731303756396,1.07676722,80750.0,80749.0,0.0014]
[1731303756770,0.39206722,80750.0,80749.0,0.0014]
[1731303756976,0.41506722,80750.0,80749.0,0.0014]
[1731303757154,0.49556722,80750.0,80749.0,0.0014]
[1731303757352,0.49556722,80750.0,80738.0,0.0014]
[1731303757353,0.23509986,80741.0,80738.0,0.0014]
[1731303757559,1.10477822,80741.0,80738.0,0.0014]
[1731303757928,1.07814117,80741.0,80738.0,0.0014]
[1731303758173,1.08177822,80741.0,80738.0,0.0014]
[1731303758375,1.07677822,80741.0,80738.0,0.0014]
[1731303758877,0.87769622,80741.0,80738.0,0.0014]
[1731303759322,0.84135929,80741.0,80738.0,0.0014]
[1731303759527,0.81427926,80741.0,80738.0,0.0014]
[1731303759728,0.81427926,80741.0,80734.0,0.09909]
[1731303759729,0.00438081,80738.0,80734.0,0.09909]
[1731303759965,0.12594221,80737.0,80730.0,0.198191]
[1731303760186,0.12594221,80737.0,80729.0,0.00044834]
[1731303760394,0.12594221,80737.0,80730.0,0.198191]
[1731303760594,0.12594221,80737.0,80729.0,0.00044834]
[1731303760595,0.12594221,80737.0,80732.0,0.099092]
[1731303760744,0.12594221,80737.0,80729.0,0.00044834]
[1731303760921,0.12594221,80737.0,80736.0,0.099088]
[1731303761132,0.00438081,80738.0,80735.0,0.099088]
[1731303761332,0.13032302,80738.0,80736.0,0.099087]
[1731303761957,0.13032302,80738.0,80737.0,0.099087]
[1731303762169,0.13032302,80738.0,80734.0,0.09909]
[1731303762380,0.13032302,80738.0,80735.0,0.099089]
[1731303762807,0.13032302,80738.0,80730.0,0.198191]
[1731303763020,0.13032302,80738.0,80729.0,0.00044834]
[1731303763021,0.22940802,80738.0,80729.0,0.00044834]
[1731303763274,0.13032302,80738.0,80729.0,0.00044834]
[1731303763440,0.13032302,80738.0,80733.0,0.099091]
[1731303764053,0.13032302,80738.0,80729.0,0.00044834]
[1731303764274,0.13032302,80738.0,80731.0,0.099094]
[1731303764527,0.13032302,80738.0,80729.0,0.11402834]
[1731303764733,0.13032302,80738.0,80732.0,0.198186]
[1731303765155,0.099088,80736.0,80729.0,0.11402834]
[1731303765453,0.13032302,80738.0,80729.0,0.11402834]
[1731303765454,0.099092,80733.0,80729.0,0.11402834]
[1731303765658,0.00438081,80732.0,80729.0,0.11402834]
[1731303766066,0.00438081,80732.0,80731.0,0.099094]
[1731303766293,0.00438081,80732.0,80730.0,0.099095]
[1731303766502,0.00438081,80732.0,80731.0,0.099094]
[1731303766624,0.00438081,80734.0,80733.0,0.099092]
[1731303767255,0.00438081,80732.0,80731.0,0.198189]
[1731303767665,0.00438081,80732.0,80731.0,0.297283]
[1731303767836,0.00438081,80732.0,80729.0,0.11402834]
[1731303768056,0.00438081,80738.0,80737.0,0.297259]
[1731303768184,0.00438081,80738.0,80737.0,0.57361741]
[1731303768437,0.00438081,80738.0,80729.0,0.11539129]
[1731303768629,0.00438081,80738.0,80737.0,0.099087]
[1731303770243,0.00438081,80739.0,80736.0,0.198176]
[1731303770480,0.00438081,80739.0,80738.0,0.099085]
[1731303771576,0.00438081,80739.0,80730.0,0.198189]
[1731303771877,0.00438081,80739.0,80732.0,0.099092]
[1731303772104,0.099086,80738.0,80730.0,0.198189]
[1731303772340,0.00438081,80739.0,80734.0,0.09909]
[1731303772724,0.00438081,80739.0,80731.0,0.198189]
[1731303772725,0.00438081,80739.0,80736.0,0.099088]
[1731303772848,0.00438081,80739.0,80731.0,0.198189]
[1731303772849,0.00438081,80739.0,80733.0,0.09909]
[1731303773050,0.00438081,80739.0,80731.0,0.198189]
[1731303773051,0.099086,80738.0,80731.0,0.099094]
[1731303773247,0.00438081,80739.0,80729.0,0.00044834]
[1731303773472,0.00438081,80739.0,80733.0,0.099091]
[1731303773677,0.00438081,80739.0,80738.0,0.000843]
[1731303774573,0.00438081,80739.0,80738.0,0.099928]
[1731303774796,0.00438081,80739.0,80738.0,0.000843]
[1731303775187,0.00438081,80739.0,80738.0,0.099928]
[1731303775929,0.00438081,80739.0,80738.0,0.000843]
[1731303776125,0.00438081,80739.0,80738.0,0.099928]
[1731303776638,0.00438081,80739.0,80738.0,0.000843]
[1731303776838,0.00438081,80739.0,80738.0,0.099928]
[1731303776962,0.00438081,80739.0,80738.0,0.000843]
[1731303777170,0.13396007,80739.0,80738.0,0.000843]
[1731303777372,0.23304407,80739.0,80738.0,0.000843]
[1731303781151,0.13396007,80739.0,80738.0,0.000843]
[1731303781343,0.23304407,80739.0,80738.0,0.000843]
[1731303781583,0.13396007,80739.0,80738.0,0.000843]
[1731303781779,0.00438081,80739.0,80738.0,0.000843]
[1731303781984,0.00438081,80740.0,80738.0,0.000843]
[1731303782217,0.00438081,80740.0,80739.0,0.10156094]
[1731303783087,0.00438081,80740.0,80739.0,0.099084]
[1731303783562,0.00606681,80753.0,80752.0,0.099068]
[1731303783687,0.18415641,80746.0,80745.0,0.099077]
[1731303783893,0.00438081,80750.0,80744.0,0.099078]
[1731303784100,0.00438081,80750.0,80738.0,0.000843]
[1731303784306,0.001686,80753.0,80752.0,0.099068]
[1731303784511,0.00438081,80750.0,80744.0,0.099077]
[1731303784729,0.00438081,80750.0,80749.0,0.099072]
[1731303784927,0.00438081,80750.0,80742.0,0.18415641]
[1731303785195,0.00438081,80750.0,80748.0,0.099072]
[1731303785397,0.001686,80753.0,80752.0,0.099068]
[1731303789628,0.001686,80753.0,80752.0,0.095996]
[1731303791767,0.001686,80753.0,80746.0,0.198152]
[1731303791958,0.001686,80753.0,80752.0,0.099068]
[1731303794526,0.001686,80753.0,80740.0,0.00061919]
[1731303794735,0.12594221,80752.0,80739.0,0.198169]
[1731303794940,0.12594221,80752.0,80738.0,0.000843]
[1731303795151,0.12594221,80752.0,80747.0,0.099074]
[1731303795568,0.12594221,80752.0,80748.0,0.099073]
[1731303795788,0.08612305,80753.0,80752.0,0.099068]
[1731303795789,0.001686,80753.0,80752.0,0.099068]
[1731303797237,0.001686,80753.0,80752.0,0.1015443]
[1731303797452,0.001686,80753.0,80752.0,0.41573512]
[1731303797670,0.001684,80762.0,80761.0,0.10241995]
[1731303797785,0.001684,80762.0,80761.0,0.28868642]
[1731303798194,0.001684,80762.0,80761.0,0.28668642]
[1731303798662,0.18415641,80788.0,80784.0,0.099029]
[1731303798869,0.18415641,80788.0,80787.0,0.099025]
[1731303799312,0.099005,80804.0,80784.0,0.18626647]
[1731303799313,0.18415641,80801.0,80793.0,0.099018]
[1731303799516,0.18415641,80801.0,80799.0,0.099011]
[1731303799517,0.18415641,80800.0,80799.0,0.099011]
[1731303799719,0.00438081,80804.0,80802.0,0.099007]
[1731303799962,0.00438081,80801.0,80800.0,0.099009]
[1731303800213,0.00438081,80801.0,80797.0,0.099012]
[1731303800406,0.00438081,80801.0,80789.0,0.198046]
[1731303800607,0.00438081,80801.0,80788.0,0.18415641]
[1731303800838,0.00438081,80801.0,80789.0,0.198046]
[1731303801024,0.09901,80800.0,80792.0,0.099018]
[1731303801246,0.00438081,80801.0,80788.0,0.18415641]
[1731303801376,0.00438081,80801.0,80799.0,0.099011]
[1731303801580,0.00438081,80801.0,80797.0,0.099013]
[1731303801781,0.00438081,80801.0,80792.0,0.198039]
[1731303801997,0.00363705,80799.0,80788.0,0.18415641]
[1731303802226,0.00363705,80799.0,80728.0,0.68415641]
[1731303802227,0.198056,80785.0,80770.0,0.099046]
[1731303802422,0.10704886,80782.0,80781.0,0.18415641]
[1731303802623,0.10342281,80773.0,80762.0,0.198111]
[1731303802802,0.00438081,80773.0,80762.0,0.198111]
[1731303803004,0.099047,80770.0,80761.0,0.28321341]
[1731303803204,0.099047,80770.0,80761.0,0.18415641]
[1731303803447,0.099046,80770.0,80762.0,0.099056]
[1731303803668,0.00363705,80772.0,80763.0,0.099055]
[1731303803894,0.00363705,80772.0,80762.0,0.198112]
[1731303803895,0.12957926,80772.0,80761.0,0.18415641]
[1731303804208,0.15103705,80778.0,80761.0,0.18415641]
[1731303804418,0.27697926,80778.0,80762.0,0.198112]
[1731303804628,0.27697926,80778.0,80772.0,0.099043]
[1731303804833,0.27697926,80778.0,80770.0,0.198093]
[1731303805050,0.099038,80777.0,80765.0,0.099052]
[1731303805234,0.27697926,80778.0,80768.0,0.099048]
[1731303805235,0.00438081,80773.0,80768.0,0.099048]
[1731303805393,0.00438081,80773.0,80769.0,0.099047]
[1731303805611,0.099058,80761.0,80753.0,0.099066]
[1731303805813,0.099055,80764.0,80758.0,0.09906]
[1731303806015,0.198107,80765.0,80755.0,0.18415641]
[1731303806240,0.099054,80764.0,80758.0,0.099061]
[1731303806438,0.12957926,80766.0,80758.0,0.198122]
[1731303806648,0.099053,80765.0,80759.0,0.099059]
[1731303807343,0.12957926,80766.0,80756.0,0.099063]
[1731303807587,0.12957926,80766.0,80755.0,0.18415641]
[1731303807808,0.198109,80764.0,80755.0,0.18415641]
[1731303807996,0.12957926,80766.0,80755.0,0.18415641]
[1731303808198,0.099056,80762.0,80755.0,0.28322041]
[1731303808409,0.12957926,80766.0,80758.0,0.09906]
[1731303808550,0.099054,80764.0,80758.0,0.09906]
[1731303809179,0.12594221,80766.0,80759.0,0.18415641]
[1731303809389,0.099049,80768.0,80759.0,0.198119]
[1731303809586,0.198099,80768.0,80755.0,0.19813]
[1731303809791,0.198099,80768.0,80753.0,0.18626647]
[1731303809997,0.099053,80765.0,80756.0,0.38228341]
[1731303810209,0.099049,80768.0,80762.0,0.099056]
[1731303810423,0.099049,80768.0,80757.0,0.198125]
[1731303810632,0.099049,80768.0,80763.0,0.099054]
[1731303810841,0.149084,80778.0,80756.0,0.18415641]
[1731303810842,0.00438081,80773.0,80771.0,0.099044]
[1731303811050,0.00438081,80773.0,80764.0,0.00247616]
[1731303811051,0.00438081,80777.0,80761.0,0.18762942]
[1731303811265,0.001684,80778.0,80777.0,0.099038]
[1731303811689,0.099042,80774.0,80757.0,0.00136295]
[1731303811898,0.12762621,80778.0,80757.0,0.18415641]
[1731303811899,0.00363705,80770.0,80757.0,0.18415641]
[1731303812103,0.099049,80768.0,80758.0,0.18415641]
[1731303812309,0.099049,80768.0,80761.0,0.099056]
[1731303812583,0.198095,80769.0,80759.0,0.19812]
[1731303812790,0.099051,80767.0,80760.0,0.099058]
[1731303813003,0.099051,80767.0,80758.0,0.38227841]
[1731303813208,0.00438081,80769.0,80758.0,0.38227841]
[1731303813419,0.099052,80766.0,80753.0,0.198134]
[1731303813639,0.099052,80766.0,80755.0,0.18415641]
[1731303814037,0.198099,80768.0,80757.0,0.198125]
[1731303814258,0.099052,80766.0,80752.0,0.000842]
[1731303814445,0.00438081,80769.0,80760.0,0.099058]
[1731303814762,0.19809,80771.0,80755.0,0.18415641]
[1731303814763,0.00438081,80771.0,80762.0,0.198112]
[1731303815048,0.00438081,80769.0,80756.0,0.18626647]
[1731303815267,0.10342881,80769.0,80756.0,0.18626647]
[1731303815479,0.00438081,80769.0,80756.0,0.18626647]
[1731303815682,0.13223705,80773.0,80770.0,0.099046]
[1731303815894,0.13223705,80773.0,80768.0,0.18415641]
[1731303815895,0.00438081,80771.0,80763.0,0.18626647]
[1731303816109,0.001684,80778.0,80770.0,0.18626647]
[1731303816320,0.001684,80778.0,80777.0,0.099038]
[1731303816532,0.001684,80778.0,80776.0,0.099038]
[1731303816739,0.001684,80778.0,80769.0,0.099047]
[1731303816945,0.00363705,80777.0,80765.0,0.099052]
[1731303817155,0.00363705,80775.0,80766.0,0.18415641]
[1731303817362,0.099045,80771.0,80766.0,0.18415641]
[1731303817561,0.099045,80771.0,80761.0,0.198114]
[1731303817562,0.20172005,80774.0,80761.0,0.198114]
[1731303817803,0.00363705,80774.0,80764.0,0.18415641]
[1731303818009,0.099044,80773.0,80766.0,0.099051]
[1731303818392,0.00363705,80774.0,80766.0,0.099051]
[1731303818611,0.099044,80772.0,80766.0,0.099051]
[1731303818869,0.198088,80773.0,80762.0,0.099055]
[1731303819095,0.00363705,80770.0,80755.0,0.18415641]
[1731303819304,0.099052,80766.0,80758.0,0.099061]
[1731303819505,0.099052,80765.0,80759.0,0.09906]
[1731303819863,0.198098,80768.0,80755.0,0.18415641]
[1731303819864,0.099049,80768.0,80756.0,0.198127]
[1731303820072,0.099049,80768.0,80762.0,0.099056]
[1731303820463,0.20173205,80769.0,80757.0,0.198125]
[1731303820659,0.00363705,80769.0,80758.0,0.09906]
[1731303820861,0.00438081,80771.0,80764.0,0.18626647]
[1731303821064,0.00438081,80771.0,80769.0,0.099047]
[1731303821333,0.0812,80772.0,80765.0,0.198105]
[1731303821536,0.0812,80772.0,80767.0,0.099049]
[1731303821537,0.00438081,80771.0,80767.0,0.099049]
[1731303821736,0.00438081,80771.0,80765.0,0.198105]
[1731303821737,0.00438081,80771.0,80769.0,0.099047]
[1731303822043,0.00438081,80771.0,80758.0,0.198122]
[1731303822249,0.100733,80768.0,80756.0,0.198127]
[1731303822453,0.100733,80768.0,80761.0,0.099056]
[1731303822654,0.001684,80768.0,80764.0,0.099053]
[1731303822876,0.001684,80768.0,80755.0,0.18415641]
[1731303823093,0.001684,80768.0,80764.0,0.099053]
[1731303823439,0.001684,80768.0,80761.0,0.099056]
[1731303823643,0.001684,80768.0,80757.0,0.198125]
[1731303824058,0.001684,80768.0,80762.0,0.099055]
[1731303824385,0.001684,80768.0,80755.0,0.18415641]
[1731303824920,0.001684,80768.0,80762.0,0.099055]
[1731303825068,0.001684,80768.0,80755.0,0.18415641]
[1731303825069,0.001684,80768.0,80757.0,0.18626647]
[1731303825264,0.001684,80768.0,80753.0,0.198134]
[1731303825265,0.099051,80767.0,80759.0,0.09906]
[1731303825469,0.001684,80768.0,80754.0,0.198132]
[1731303825684,0.099054,80764.0,80757.0,0.099061]
[1731303825887,0.099052,80766.0,80758.0,0.099061]
[1731303826087,0.001684,80768.0,80755.0,0.18415641]
[1731303826285,0.1981,80767.0,80756.0,0.099062]
[1731303826497,0.001684,80768.0,80752.0,0.000842]
[1731303826498,0.19812,80759.0,80752.0,0.000842]
[1731303826722,0.18298486,80753.0,80752.0,0.000842]
[1731303827073,0.30892707,80753.0,80752.0,0.000842]
[1731303827829,0.35562707,80753.0,80752.0,0.000842]
[1731303829327,0.45562707,80753.0,80752.0,0.000842]
[1731303833259,0.45562707,80753.0,80752.0,0.011162]
[1731303834051,0.46062707,80753.0,80752.0,0.011162]
[1731303834464,0.4683806,80753.0,80752.0,0.011162]
[1731303837401,0.45562707,80753.0,80752.0,0.011162]
[1731303838713,0.64189354,80753.0,80752.0,0.011162]
[1731303839098,0.45562707,80753.0,80752.0,0.011162]
[1731303842121,0.45124626,80753.0,80752.0,0.011162]
[1731303842348,0.45562707,80753.0,80752.0,0.011162]
[1731303842553,0.00438081,80760.0,80752.0,0.011162]
[1731303842761,0.00363705,80761.0,80752.0,0.011162]
[1731303842762,0.00438081,80756.0,80752.0,0.011162]
[1731303842975,0.00363705,80761.0,80752.0,0.011162]
[1731303842976,0.12957926,80761.0,80752.0,0.011162]
[1731303843261,0.00438081,80756.0,80752.0,0.011162]
[1731303843494,0.00363705,80761.0,80752.0,0.011162]
[1731303843694,0.00363705,80761.0,80753.0,0.0024764]
[1731303843956,0.00363705,80761.0,80753.0,0.01032]
[1731303844182,0.00438081,80754.0,80753.0,0.01032]
[1731303845393,0.00438081,80756.0,80753.0,0.109386]
[1731303845642,0.001684,80760.0,80759.0,0.09906]
[1731303845854,0.001684,80760.0,80759.0,0.10938]
[1731303846004,0.10512281,80760.0,80759.0,0.01032]
[1731303846209,0.00606481,80760.0,80759.0,0.01032]
[1731303846421,0.10512281,80760.0,80759.0,0.01032]
[1731303846838,0.23470207,80760.0,80759.0,0.01032]
[1731303846990,0.33470207,80760.0,80759.0,0.01032]
[1731303847195,0.46480207,80760.0,80759.0,0.01032]
[1731303849539,0.46980207,80760.0,80759.0,0.01032]
[1731303849739,0.49480207,80760.0,80759.0,0.01032]
[1731303849940,0.49980207,80760.0,80759.0,0.01032]
[1731303850229,1.18450207,80760.0,80759.0,0.01032]
[1731303850556,1.18250207,80760.0,80759.0,0.01032]
[1731303851396,1.18450207,80760.0,80759.0,0.01032]
[1731303851595,1.18250207,80760.0,80759.0,0.01032]
[1731303852018,0.01301786,80753.0,80752.0,0.000842]
[1731303852255,0.41652707,80753.0,80752.0,0.000842]
[1731303853086,0.44452707,80753.0,80752.0,0.000842]
[1731303853286,0.44652707,80753.0,80752.0,0.000842]
[1731303853490,0.44452707,80753.0,80752.0,0.000842]
[1731303853695,0.41152707,80753.0,80752.0,0.000842]
[1731303853913,0.41940214,80753.0,80752.0,0.000842]
[1731303854065,0.41152707,80753.0,80752.0,0.000842]
[1731303854287,0.198131,80755.0,80752.0,0.000842]
[1731303854288,0.00363705,80754.0,80752.0,0.000842]
[1731303854560,0.10344781,80753.0,80752.0,0.000842]
[1731303854763,0.23302707,80753.0,80752.0,0.104162]
[1731303855095,0.13032302,80753.0,80752.0,0.104162]
[1731303855302,0.23032302,80753.0,80752.0,0.104162]
[1731303855522,0.00363705,80754.0,80752.0,0.104162]
[1731303855731,0.12957926,80754.0,80752.0,0.104162]
[1731303856128,0.00532105,80760.0,80752.0,0.203229]
[1731303856526,0.001684,80760.0,80757.0,0.099061]
[1731303856743,0.001684,80760.0,80757.0,0.10332]
[1731303856744,0.00438081,80759.0,80757.0,0.10332]
[1731303857411,0.00438081,80758.0,80757.0,0.10332]
[1731303858341,0.001684,80760.0,80759.0,0.09906]
[1731303858731,0.001684,80760.0,80759.0,0.20238]
[1731303862021,0.001684,80760.0,80759.0,0.20485606]
[1731303863043,0.001684,80760.0,80759.0,0.20238]
[1731303866476,0.18252441,80773.0,80760.0,0.198117]
[1731303866683,0.18252441,80773.0,80772.0,0.099044]
[1731303866927,0.18252441,80773.0,80772.0,0.10332]
[1731303867133,0.00438081,80781.0,80772.0,0.10332]
[1731303867349,0.18853722,80781.0,80775.0,0.09904]
[1731303867498,0.18853722,80781.0,80776.0,0.099039]
[1731303867849,0.00363705,80782.0,80777.0,0.099038]
[1731303868058,0.00438081,80781.0,80777.0,0.202358]
[1731303868230,0.00438081,80780.0,80777.0,0.202358]
[1731303869209,0.00438081,80780.0,80777.0,0.10332]
[1731303869638,0.00363705,80782.0,80777.0,0.202358]
[1731303870991,0.10185753,80787.0,80777.0,0.202358]
[1731303870992,0.00363705,80785.0,80777.0,0.202358]
[1731303871201,0.00438081,80783.0,80777.0,0.202358]
[1731303872288,0.00185753,80787.0,80777.0,0.202358]
[1731303872289,0.00185753,80787.0,80777.0,0.38862447]
[1731303873993,0.00185753,80787.0,80777.0,0.39062447]
[1731303874209,0.00185753,80787.0,80777.0,0.38862447]
[1731303874617,0.00185753,80787.0,80777.0,0.202358]
[1731303877447,0.00185753,80787.0,80777.0,0.20483353]
[1731303877988,0.00185753,80787.0,80777.0,0.202358]
[1731303878737,0.00185753,80787.0,80777.0,0.20483353]
[1731303879177,0.00185753,80787.0,80777.0,0.202358]
[1731303879406,0.099022,80790.0,80777.0,0.202358]
[1731303879568,0.00363705,80790.0,80777.0,0.202358]
[1731303879803,0.099023,80789.0,80777.0,0.202358]
[1731303879996,0.00363705,80790.0,80777.0,0.202358]
[1731303880150,0.099025,80788.0,80777.0,0.202358]
[1731303880364,0.10265905,80790.0,80777.0,0.202358]
[1731303880770,0.18415641,80791.0,80777.0,0.10332]
[1731303880771,0.22666221,80778.0,80777.0,0.10332]
[1731303881094,0.23468007,80778.0,80777.0,0.10332]
[1731303893933,0.13564407,80778.0,80777.0,0.10332]
[1731303894360,0.23468007,80778.0,80777.0,0.10332]
[1731303907211,0.51883648,80778.0,80777.0,0.10332]
[1731303907455,0.51883648,80778.0,80773.0,0.000841]
[1731303907456,1.36753648,80778.0,80773.0,0.000841]
[1731303907621,1.36753648,80778.0,80757.0,0.000842]
[1731303907622,0.20707886,80758.0,80757.0,0.000842]
[1731303907769,0.33302107,80758.0,80757.0,0.000842]
[1731303908503,0.23302107,80758.0,80757.0,0.000842]
[1731303909249,0.00363705,80763.0,80757.0,0.000842]
[1731303909438,0.12594221,80762.0,80759.0,0.099059]
[1731303909681,0.12594221,80762.0,80757.0,0.000842]
[1731303909682,0.00438081,80770.0,80758.0,0.198122]
[1731303909903,0.328757,80778.0,80774.0,0.099041]
[1731303909904,0.00438081,80775.0,80774.0,0.099041]
[1731303910364,0.001684,80778.0,80777.0,0.099038]
[1731303910782,0.001684,80778.0,80777.0,0.1015136]
[1731303911025,0.001684,80778.0,80777.0,0.099038]
[1731303911227,0.001684,80778.0,80777.0,0.10287645]
[1731303911419,0.001684,80778.0,80777.0,0.10349564]
[1731303911752,0.001684,80778.0,80777.0,0.22696235]
[1731303912207,0.001684,80778.0,80777.0,0.22896235]
[1731303912402,0.18415641,80791.0,80790.0,0.10038495]
[1731303912808,0.00185745,80794.0,80790.0,0.00136295]
[1731303912976,0.00185745,80794.0,80793.0,0.099018]
[1731303914105,0.00185745,80794.0,80789.0,0.099022]
[1731303914319,0.00185745,80794.0,80786.0,0.198053]
[1731303914320,0.00185745,80794.0,80787.0,0.18415641]
[1731303914492,0.00185745,80794.0,80793.0,0.099018]
[1731303915531,0.13143671,80794.0,80790.0,0.099021]
[1731303915826,0.00185745,80794.0,80793.0,0.099018]
[1731303916580,0.00353945,80794.0,80793.0,0.099018]
[1731303917677,0.001682,80794.0,80790.0,0.18415641]
[1731303917879,0.001682,80794.0,80793.0,0.099018]
[1731303918087,0.001682,80794.0,80790.0,0.198044]
[1731303918296,0.001682,80794.0,80783.0,0.198061]
[1731303918661,0.001682,80794.0,80785.0,0.198056]
[1731303918861,0.001682,80794.0,80793.0,0.099018]
[1731303919667,0.001682,80794.0,80793.0,0.10485587]
[1731303919916,0.001682,80794.0,80793.0,0.22635587]
[1731303920293,0.001682,80794.0,80793.0,0.45291727]
[1731303920503,0.18415641,80810.0,80809.0,0.09961719]
[1731303920964,0.18415641,80810.0,80806.0,0.00247475]
[1731303920965,0.000701,80820.0,80819.0,0.098986]
[1731303922033,0.000701,80820.0,80812.0,0.39598]
[1731303922247,0.000701,80820.0,80805.0,0.18415641]
[1731303922458,0.000701,80820.0,80805.0,0.1847756]
[1731303922851,0.000701,80820.0,80819.0,0.098986]
[1731303925877,0.000701,80820.0,80818.0,0.098987]
[1731303926081,0.000701,80820.0,80815.0,0.09899]
[1731303926327,0.000701,80820.0,80811.0,0.197992]
[1731303926537,0.000701,80820.0,80819.0,0.098986]
[1731303928183,0.000701,80820.0,80819.0,0.28525247]
[1731303928390,0.000701,80820.0,80819.0,0.28772667]
[1731303928597,0.000701,80820.0,80819.0,0.28661542]
[1731303929056,0.000701,80820.0,80819.0,0.10034895]
[1731303931090,0.000701,80820.0,80819.0,0.10234895]
[1731303932497,0.000701,80820.0,80819.0,0.10034895]
[1731303933039,0.000701,80820.0,80819.0,0.098986]
[1731303934175,0.000701,80820.0,80819.0,0.28525247]
[1731303934382,0.000701,80820.0,80819.0,0.2877267]
[1731303935020,0.000701,80820.0,80819.0,0.28908965]
[1731303935221,0.000701,80820.0,80819.0,0.28661542]
[1731303935979,0.000701,80820.0,80819.0,0.28861542]